[Event "Late-Titled-Tuesday-Blitz-April-23-2024"]
[Site "Chess.com"]
[Date "2024.04.23"]
[Round "4"]
[White "NM_Koval"]
[Black "kripri"]
[Result "1/2-1/2"]
[WhiteElo "2170"]
[BlackElo "2335"]
[TimeControl "180+1"]
[EndTime "14:41:09 PDT"]
[Termination "Game drawn - insufficient material"]

1. d4 {[%clk 0:02:54.6]} 1... Nf6 {[%clk 0:02:59.4]} 2. Nc3 {[%clk 0:02:53]}
2... d5 {[%clk 0:02:57.2]} 3. f3 {[%clk 0:02:53.2]} 3... c5 {[%clk 0:02:55.5]}
4. e4 {[%clk 0:02:53]} 4... cxd4 {[%clk 0:02:55.4]} 5. Qxd4 {[%clk 0:02:53.6]}
5... Nc6 {[%clk 0:02:55.9]} 6. Bb5 {[%clk 0:02:53.4]} 6... dxe4 {[%clk
0:02:41.3]} 7. Qxd8+ {[%clk 0:02:52.2]} 7... Kxd8 {[%clk 0:02:42.2]} 8. Bf4
{[%clk 0:02:51.7]} 8... e5 {[%clk 0:02:41.8]} 9. O-O-O+ {[%clk 0:02:50.4]} 9...
Kc7 {[%clk 0:02:40.7]} 10. Bxc6 {[%clk 0:02:51]} 10... exf4 {[%clk 0:02:40.4]}
11. Bxe4 {[%clk 0:02:51.3]} 11... Nxe4 {[%clk 0:02:39.1]} 12. Nd5+ {[%clk
0:02:51.8]} 12... Kc6 {[%clk 0:02:36.4]} 13. fxe4 {[%clk 0:02:52.7]} 13... f5
{[%clk 0:02:34.2]} 14. Ne2 {[%clk 0:02:43.2]} 14... fxe4 {[%clk 0:02:24.9]} 15.
Nexf4 {[%clk 0:02:42.6]} 15... g5 {[%clk 0:02:20.3]} 16. Ne2 {[%clk 0:02:33.3]}
16... Be6 {[%clk 0:02:17.5]} 17. Ndc3 {[%clk 0:02:28.5]} 17... Bg4 {[%clk
0:02:05.7]} 18. Nd4+ {[%clk 0:02:21.6]} 18... Kb6 {[%clk 0:01:58.2]} 19. Rde1
{[%clk 0:02:20.4]} 19... Re8 {[%clk 0:01:53.8]} 20. h3 {[%clk 0:02:06.1]} 20...
Bd7 {[%clk 0:01:49.9]} 21. Rhf1 {[%clk 0:02:02.5]} 21... Bc5 {[%clk 0:01:39.6]}
22. Rf6+ {[%clk 0:01:57.9]} 22... Kc7 {[%clk 0:01:34.2]} 23. Nb3 {[%clk
0:01:49.2]} 23... Be7 {[%clk 0:01:18.6]} 24. Nd5+ {[%clk 0:01:46.6]} 24... Kb8
{[%clk 0:01:17.5]} 25. Rf7 {[%clk 0:01:43.7]} 25... Be6 {[%clk 0:01:13.1]} 26.
Rxe7 {[%clk 0:01:30.1]} 26... Bxd5 {[%clk 0:01:13.3]} 27. Rxe8+ {[%clk
0:01:27.1]} 27... Rxe8 {[%clk 0:01:14.2]} 28. Nd4 {[%clk 0:01:27]} 28... Rf8
{[%clk 0:01:07.1]} 29. Re2 {[%clk 0:01:25.8]} 29... Kc7 {[%clk 0:00:49]} 30. Kd2
{[%clk 0:01:25.1]} 30... Kd6 {[%clk 0:00:48.1]} 31. Ke3 {[%clk 0:01:25]} 31...
Ke5 {[%clk 0:00:47.3]} 32. a3 {[%clk 0:01:23.4]} 32... h5 {[%clk 0:00:40.1]} 33.
c3 {[%clk 0:01:22.5]} 33... h4 {[%clk 0:00:37.8]} 34. Nc2 {[%clk 0:01:13]} 34...
Rf1 {[%clk 0:00:36]} 35. Rf2 {[%clk 0:01:08.1]} 35... Re1+ {[%clk 0:00:27.3]}
36. Re2 {[%clk 0:01:06.6]} 36... Rxe2+ {[%clk 0:00:21.2]} 37. Kxe2 {[%clk
0:01:05.7]} 37... Kf4 {[%clk 0:00:18.3]} 38. Kf2 {[%clk 0:01:05.8]} 38... Be6
{[%clk 0:00:16]} 39. Ne3 {[%clk 0:01:04.2]} 39... b5 {[%clk 0:00:15.8]} 40. Nf1
{[%clk 0:01:03.2]} 40... Ke5 {[%clk 0:00:15.1]} 41. Ne3 {[%clk 0:01:04.1]} 41...
Kf4 {[%clk 0:00:15.2]} 42. Nf1 {[%clk 0:01:03.5]} 42... a6 {[%clk 0:00:15.7]}
43. Ne3 {[%clk 0:01:03]} 43... Ke5 {[%clk 0:00:15.8]} 44. Nc2 {[%clk 0:01:02.4]}
44... a5 {[%clk 0:00:12.3]} 45. Ke3 {[%clk 0:01:01.7]} 45... Bd7 {[%clk
0:00:10.5]} 46. Nd4 {[%clk 0:01:01.1]} 46... a4 {[%clk 0:00:10.5]} 47. Ne2
{[%clk 0:01:00.3]} 47... Kd5 {[%clk 0:00:10.5]} 48. Nd4 {[%clk 0:00:59.7]} 48...
Ke5 {[%clk 0:00:11]} 49. Ne2 {[%clk 0:00:58.6]} 49... g4 {[%clk 0:00:09.4]} 50.
hxg4 {[%clk 0:00:57.6]} 50... Bxg4 {[%clk 0:00:10.3]} 51. Nc1 {[%clk 0:00:57.2]}
51... Bh5 {[%clk 0:00:07.3]} 52. b3 {[%clk 0:00:57.3]} 52... axb3 {[%clk
0:00:05.6]} 53. Nxb3 {[%clk 0:00:58.2]} 53... Bd1 {[%clk 0:00:05.8]} 54. Nd4
{[%clk 0:00:58.1]} 54... Bh5 {[%clk 0:00:06.5]} 55. Nxb5 {[%clk 0:00:57.3]}
55... Kd5 {[%clk 0:00:07.3]} 56. Nd4 {[%clk 0:00:58.1]} 56... Kc4 {[%clk
0:00:07.6]} 57. Kxe4 {[%clk 0:00:58.4]} 57... Kxc3 {[%clk 0:00:08.3]} 58. Nf5
{[%clk 0:00:58]} 58... Bg6 {[%clk 0:00:08]} 59. Kf4 {[%clk 0:00:57.1]} 59... Kb3
{[%clk 0:00:08.4]} 60. Nxh4 {[%clk 0:00:56.7]} 60... Bf7 {[%clk 0:00:07.7]} 61.
Kg5 {[%clk 0:00:57.6]} 61... Kxa3 {[%clk 0:00:08.1]} 62. g4 {[%clk 0:00:57.4]}
62... Kb4 {[%clk 0:00:08.7]} 63. Nf5 {[%clk 0:00:57.7]} 63... Kc5 {[%clk
0:00:08.9]} 64. Kf6 {[%clk 0:00:58]} 64... Ba2 {[%clk 0:00:09]} 65. g5 {[%clk
0:00:58.3]} 65... Kc6 {[%clk 0:00:08.7]} 66. g6 {[%clk 0:00:58]} 66... Kd7
{[%clk 0:00:09.3]} 67. Kg7 {[%clk 0:00:55.5]} 67... Ke8 {[%clk 0:00:09.6]} 68.
Nd6+ {[%clk 0:00:52.4]} 68... Kd7 {[%clk 0:00:09.5]} 69. Nf7 {[%clk 0:00:52.5]}
69... Ke7 {[%clk 0:00:09.2]} 70. Nh6 {[%clk 0:00:48.4]} 70... Bb3 {[%clk
0:00:09.6]} 71. Nf5+ {[%clk 0:00:48]} 71... Ke8 {[%clk 0:00:10.3]} 72. Kh7
{[%clk 0:00:47.3]} 72... Ba2 {[%clk 0:00:09]} 73. g7 {[%clk 0:00:47.1]} 73...
Kd7 {[%clk 0:00:09.1]} 74. g8=Q {[%clk 0:00:46.3]} 74... Bxg8+ {[%clk
0:00:08.7]} 1/2-1/2

[Event "Late-Titled-Tuesday-Blitz-April-23-2024"]
[Site "Chess.com"]
[Date "2024.04.23"]
[Round "4"]
[White "Casablanca"]
[Black "Noki102"]
[Result "1-0"]
[WhiteElo "2696"]
[BlackElo "2521"]
[TimeControl "180+1"]
[EndTime "14:41:10 PDT"]
[Termination "Casablanca won by checkmate"]

1. c4 {[%clk 0:03:00.9]} 1... e5 {[%clk 0:02:59]} 2. g3 {[%clk 0:02:46]} 2...
Nc6 {[%clk 0:02:57.5]} 3. Bg2 {[%clk 0:02:46.5]} 3... Bc5 {[%clk 0:02:57.9]} 4.
Nc3 {[%clk 0:02:46.5]} 4... a6 {[%clk 0:02:58.2]} 5. Nf3 {[%clk 0:02:46.2]} 5...
d6 {[%clk 0:02:58.5]} 6. O-O {[%clk 0:02:46.4]} 6... Nge7 {[%clk 0:02:59.1]} 7.
a3 {[%clk 0:02:44.2]} 7... Be6 {[%clk 0:02:57.5]} 8. b4 {[%clk 0:02:43.8]} 8...
Ba7 {[%clk 0:02:57.2]} 9. d3 {[%clk 0:02:44.2]} 9... f6 {[%clk 0:02:56.6]} 10.
Bd2 {[%clk 0:02:29.9]} 10... O-O {[%clk 0:02:56.1]} 11. Rb1 {[%clk 0:02:27.5]}
11... Qd7 {[%clk 0:02:55.6]} 12. Re1 {[%clk 0:02:25.6]} 12... Bh3 {[%clk
0:02:52.2]} 13. Bh1 {[%clk 0:02:25.8]} 13... Nf5 {[%clk 0:02:45.2]} 14. Nd5
{[%clk 0:02:22.2]} 14... Ncd4 {[%clk 0:02:39.2]} 15. e3 {[%clk 0:02:22.2]} 15...
Ne6 {[%clk 0:02:36.5]} 16. Qc2 {[%clk 0:02:04.9]} 16... c6 {[%clk 0:02:36.1]}
17. Nc3 {[%clk 0:02:05]} 17... Rac8 {[%clk 0:02:20.2]} 18. a4 {[%clk 0:01:51.4]}
18... d5 {[%clk 0:02:05.7]} 19. c5 {[%clk 0:01:49.9]} 19... d4 {[%clk
0:01:57.2]} 20. Ne4 {[%clk 0:01:48.8]} 20... Rfd8 {[%clk 0:01:50.7]} 21. Rb3
{[%clk 0:01:48.4]} 21... dxe3 {[%clk 0:01:25.8]} 22. fxe3 {[%clk 0:01:49.3]}
22... Bg4 {[%clk 0:01:23]} 23. Rc3 {[%clk 0:01:23]} 23... Nc7 {[%clk 0:00:46.7]}
24. Nf2 {[%clk 0:01:21.2]} 24... Bxf3 {[%clk 0:00:46.2]} 25. Bxf3 {[%clk
0:01:21.3]} 25... Nd5 {[%clk 0:00:42.1]} 26. Rb3 {[%clk 0:01:17.2]} 26... Nfe7
{[%clk 0:00:35.7]} 27. Bg2 {[%clk 0:01:09.5]} 27... Kh8 {[%clk 0:00:35.7]} 28.
Bh3 {[%clk 0:01:02.4]} 28... f5 {[%clk 0:00:32.5]} 29. e4 {[%clk 0:01:02.8]}
29... Nf6 {[%clk 0:00:27.2]} 30. Bg5 {[%clk 0:01:03.2]} 30... a5 {[%clk
0:00:25.5]} 31. bxa5 {[%clk 0:00:55.4]} 31... Qd4 {[%clk 0:00:24.8]} 32. Be3
{[%clk 0:00:55.3]} 32... Qxa4 {[%clk 0:00:25]} 33. Qb2 {[%clk 0:00:45.1]} 33...
Qxa5 {[%clk 0:00:16.1]} 34. Ra1 {[%clk 0:00:44.2]} 34... Qc7 {[%clk 0:00:11.4]}
35. Rxa7 {[%clk 0:00:43.6]} 35... fxe4 {[%clk 0:00:10.3]} 36. Rbxb7 {[%clk
0:00:44.1]} 36... Rb8 {[%clk 0:00:10]} 37. Rxc7 {[%clk 0:00:41.3]} 37... Rxb2
{[%clk 0:00:10.3]} 38. Rxe7 {[%clk 0:00:42.1]} 38... exd3 {[%clk 0:00:10.3]} 39.
Nxd3 {[%clk 0:00:37.4]} 39... Rxd3 {[%clk 0:00:09.1]} 40. Ra8+ {[%clk
0:00:37.2]} 40... Ng8 {[%clk 0:00:09.4]} 41. Ree8 {[%clk 0:00:29.4]} 41... Rd1+
{[%clk 0:00:09]} 42. Bf1 {[%clk 0:00:29.7]} 42... h6 {[%clk 0:00:08.6]} 43.
Rxg8+ {[%clk 0:00:30.6]} 43... Kh7 {[%clk 0:00:08.3]} 44. Rgf8 {[%clk
0:00:29.9]} 44... Re2 {[%clk 0:00:06.9]} 45. Bf2 {[%clk 0:00:28.4]} 45... Rc2
{[%clk 0:00:06.7]} 46. Kg2 {[%clk 0:00:27.7]} 46... Rdd2 {[%clk 0:00:05.5]} 47.
Rad8 {[%clk 0:00:24.7]} 47... Rxd8 {[%clk 0:00:01.6]} 48. Rxd8 {[%clk 0:00:24]}
48... e4 {[%clk 0:00:02.5]} 49. Re8 {[%clk 0:00:23.1]} 49... e3 {[%clk 0:00:02]}
50. Rxe3 {[%clk 0:00:23.5]} 50... Rxc5 {[%clk 0:00:02.9]} 51. Bd3+ {[%clk
0:00:23.1]} 51... Kg8 {[%clk 0:00:01.8]} 52. Re8+ {[%clk 0:00:23.6]} 52... Kf7
{[%clk 0:00:02]} 53. Bg6+ {[%clk 0:00:23.4]} 53... Kxg6 {[%clk 0:00:01.7]} 54.
Bxc5 {[%clk 0:00:24.1]} 54... h5 {[%clk 0:00:02.2]} 55. Re5 {[%clk 0:00:24.2]}
55... h4 {[%clk 0:00:02.2]} 56. gxh4 {[%clk 0:00:24.2]} 56... Kh6 {[%clk
0:00:02.6]} 57. Rg5 {[%clk 0:00:24.9]} 57... g6 {[%clk 0:00:02.6]} 58. Bd4
{[%clk 0:00:24.4]} 58... Kh7 {[%clk 0:00:03]} 59. h5 {[%clk 0:00:24.4]} 59... c5
{[%clk 0:00:03.9]} 60. hxg6+ {[%clk 0:00:24.5]} 60... Kh6 {[%clk 0:00:04.3]} 61.
g7 {[%clk 0:00:23.8]} 61... cxd4 {[%clk 0:00:03.5]} 62. g8=Q {[%clk 0:00:23.9]}
62... d3 {[%clk 0:00:04.1]} 63. Qg6# {[%clk 0:00:24.4]} 1-0

[Event "Late-Titled-Tuesday-Blitz-April-23-2024"]
[Site "Chess.com"]
[Date "2024.04.23"]
[Round "4"]
[White "jlf287"]
[Black "KNVB"]
[Result "0-1"]
[WhiteElo "2542"]
[BlackElo "2715"]
[TimeControl "180+1"]
[EndTime "14:41:11 PDT"]
[Termination "KNVB won on time"]

1. d4 {[%clk 0:03:00.9]} 1... e5 {[%clk 0:02:59.6]} 2. dxe5 {[%clk 0:02:58.7]}
2... Nc6 {[%clk 0:03:00.1]} 3. Nf3 {[%clk 0:02:58.9]} 3... Qe7 {[%clk
0:03:00.7]} 4. Bf4 {[%clk 0:02:58.7]} 4... Qb4+ {[%clk 0:03:01]} 5. Bd2 {[%clk
0:02:58.6]} 5... Qxb2 {[%clk 0:03:01.5]} 6. Nc3 {[%clk 0:02:59.3]} 6... Bb4
{[%clk 0:03:02.2]} 7. Rb1 {[%clk 0:02:56.7]} 7... Qxc3 {[%clk 0:03:03.1]} 8.
Bxc3 {[%clk 0:02:57.3]} 8... Bxc3+ {[%clk 0:03:04]} 9. Nd2 {[%clk 0:02:58]} 9...
Nxe5 {[%clk 0:03:04.6]} 10. Rb3 {[%clk 0:02:51.6]} 10... Ba5 {[%clk 0:03:04.6]}
11. c3 {[%clk 0:02:48.2]} 11... Nf6 {[%clk 0:03:02.3]} 12. e3 {[%clk 0:02:48]}
12... O-O {[%clk 0:03:01.4]} 13. Nc4 {[%clk 0:02:46.9]} 13... Nxc4 {[%clk
0:02:56.8]} 14. Bxc4 {[%clk 0:02:47.8]} 14... Bb6 {[%clk 0:02:38.6]} 15. O-O
{[%clk 0:02:46.8]} 15... d6 {[%clk 0:02:39]} 16. Qc2 {[%clk 0:02:33.2]} 16...
Re8 {[%clk 0:02:37.4]} 17. Re1 {[%clk 0:02:22.8]} 17... Be6 {[%clk 0:02:32.8]}
18. Bxe6 {[%clk 0:02:19.6]} 18... Rxe6 {[%clk 0:02:33.7]} 19. Rbb1 {[%clk
0:02:14.1]} 19... Rae8 {[%clk 0:02:32.2]} 20. Qd3 {[%clk 0:02:01.1]} 20... Ne4
{[%clk 0:02:30.6]} 21. Qc2 {[%clk 0:01:14]} 21... g6 {[%clk 0:02:29.3]} 22. g3
{[%clk 0:01:13.1]} 22... Rf6 {[%clk 0:02:22.9]} 23. Kg2 {[%clk 0:00:52.9]} 23...
Rxf2+ {[%clk 0:02:18.8]} 24. Qxf2 {[%clk 0:00:52.6]} 24... Nxf2 {[%clk
0:02:19.7]} 25. Kxf2 {[%clk 0:00:53.3]} 25... Re5 {[%clk 0:02:07.6]} 26. Kf3
{[%clk 0:00:47.7]} 26... Ra5 {[%clk 0:02:00.7]} 27. Re2 {[%clk 0:00:46.8]} 27...
Kf8 {[%clk 0:01:58.4]} 28. Rb4 {[%clk 0:00:38.8]} 28... Rf5+ {[%clk 0:01:48.8]}
29. Rf4 {[%clk 0:00:37.2]} 29... Rc5 {[%clk 0:01:49]} 30. c4 {[%clk 0:00:33.8]}
30... Ra5 {[%clk 0:01:31.2]} 31. h4 {[%clk 0:00:28.6]} 31... Kg7 {[%clk
0:01:13]} 32. g4 {[%clk 0:00:28.9]} 32... h6 {[%clk 0:00:52.5]} 33. Kg3 {[%clk
0:00:24.4]} 33... Ra3 {[%clk 0:00:51.9]} 34. Re4 {[%clk 0:00:21.9]} 34... Kf8
{[%clk 0:00:52.3]} 35. Kf3 {[%clk 0:00:20.9]} 35... Bc5 {[%clk 0:00:51.6]} 36.
Rf4 {[%clk 0:00:17.4]} 36... Rc3 {[%clk 0:00:47.3]} 37. Re4 {[%clk 0:00:16.8]}
37... a5 {[%clk 0:00:34.8]} 38. g5 {[%clk 0:00:17.1]} 38... h5 {[%clk
0:00:27.7]} 39. Rf4 {[%clk 0:00:16.3]} 39... a4 {[%clk 0:00:25.5]} 40. Re4
{[%clk 0:00:13.7]} 40... a3 {[%clk 0:00:20.6]} 41. Kf2 {[%clk 0:00:12.9]} 41...
Rc1 {[%clk 0:00:17.9]} 42. Rd2 {[%clk 0:00:10]} 42... Rh1 {[%clk 0:00:09.4]} 43.
Ke2 {[%clk 0:00:09.9]} 43... Bb4 {[%clk 0:00:05.7]} 44. Rc2 {[%clk 0:00:08.8]}
44... b6 {[%clk 0:00:05.4]} 45. Kd3 {[%clk 0:00:09.1]} 45... Be1 {[%clk
0:00:04.3]} 46. Re2 {[%clk 0:00:08.2]} 46... Bxh4 {[%clk 0:00:03.5]} 47. Rf4
{[%clk 0:00:04.5]} 47... Bxg5 {[%clk 0:00:03.9]} 48. Rf3 {[%clk 0:00:04.9]}
48... Kg7 {[%clk 0:00:03.5]} 49. Ref2 {[%clk 0:00:03.9]} 49... f6 {[%clk
0:00:04]} 50. e4 {[%clk 0:00:03.5]} 50... h4 {[%clk 0:00:03.4]} 51. Ke2 {[%clk
0:00:03]} 51... h3 {[%clk 0:00:03.4]} 52. Rxa3 {[%clk 0:00:02.6]} 52... Ra1
{[%clk 0:00:03.1]} 0-1

[Event "Late-Titled-Tuesday-Blitz-April-23-2024"]
[Site "Chess.com"]
[Date "2024.04.23"]
[Round "4"]
[White "Cmorales2001"]
[Black "jinbojinbo"]
[Result "0-1"]
[WhiteElo "2420"]
[BlackElo "2641"]
[TimeControl "180+1"]
[EndTime "14:41:11 PDT"]
[Termination "jinbojinbo won by resignation"]

1. c4 {[%clk 0:03:00.9]} 1... Nf6 {[%clk 0:02:58.5]} 2. g3 {[%clk 0:02:58.4]}
2... g6 {[%clk 0:02:58.2]} 3. Bg2 {[%clk 0:02:57.4]} 3... Bg7 {[%clk 0:02:58.6]}
4. Nc3 {[%clk 0:02:56.7]} 4... O-O {[%clk 0:02:58.9]} 5. d3 {[%clk 0:02:56.7]}
5... d6 {[%clk 0:02:57.4]} 6. Nf3 {[%clk 0:02:56.8]} 6... e5 {[%clk 0:02:57]} 7.
O-O {[%clk 0:02:57.3]} 7... Nc6 {[%clk 0:02:55.7]} 8. Rb1 {[%clk 0:02:57.4]}
8... a5 {[%clk 0:02:54.9]} 9. a3 {[%clk 0:02:56.4]} 9... Nd4 {[%clk 0:02:53.8]}
10. Nxd4 {[%clk 0:02:51.9]} 10... exd4 {[%clk 0:02:53.4]} 11. Nb5 {[%clk
0:02:47.8]} 11... Ne8 {[%clk 0:02:20.7]} 12. e3 {[%clk 0:02:43.5]} 12... dxe3
{[%clk 0:02:20.8]} 13. Bxe3 {[%clk 0:02:43.5]} 13... c6 {[%clk 0:02:20.7]} 14.
Nc3 {[%clk 0:02:42.4]} 14... Nc7 {[%clk 0:02:18.8]} 15. d4 {[%clk 0:02:33.8]}
15... Bf5 {[%clk 0:02:17.4]} 16. Rc1 {[%clk 0:02:32.9]} 16... Qd7 {[%clk
0:02:10.5]} 17. Re1 {[%clk 0:02:30.6]} 17... Rfe8 {[%clk 0:02:09.3]} 18. Qd2
{[%clk 0:02:30.4]} 18... h5 {[%clk 0:02:06.6]} 19. h4 {[%clk 0:02:29.2]} 19...
Rac8 {[%clk 0:01:42.9]} 20. Na4 {[%clk 0:02:20.1]} 20... Rb8 {[%clk 0:01:38.7]}
21. Nb6 {[%clk 0:02:10.9]} 21... Qd8 {[%clk 0:01:37.1]} 22. d5 {[%clk
0:02:09.8]} 22... c5 {[%clk 0:01:32.9]} 23. Bg5 {[%clk 0:02:02]} 23... Bf6
{[%clk 0:01:26.6]} 24. Bxf6 {[%clk 0:01:33.1]} 24... Qxf6 {[%clk 0:01:26.2]} 25.
Na4 {[%clk 0:01:19.1]} 25... b5 {[%clk 0:01:15.3]} 26. cxb5 {[%clk 0:01:14.2]}
26... Rxb5 {[%clk 0:01:12.5]} 27. Rxe8+ {[%clk 0:01:12]} 27... Nxe8 {[%clk
0:01:13.4]} 28. Qe2 {[%clk 0:01:01.2]} 28... Rb8 {[%clk 0:01:06.3]} 29. Nc3
{[%clk 0:00:59]} 29... Nc7 {[%clk 0:00:59.3]} 30. Bf1 {[%clk 0:00:52.4]} 30...
Re8 {[%clk 0:00:56.7]} 31. Qd2 {[%clk 0:00:52.3]} 31... Qe5 {[%clk 0:00:54.5]}
32. Bg2 {[%clk 0:00:48.9]} 32... Re7 {[%clk 0:00:44.9]} 33. Nd1 {[%clk
0:00:42.8]} 33... Qe1+ {[%clk 0:00:40]} 34. Qxe1 {[%clk 0:00:37.3]} 34... Rxe1+
{[%clk 0:00:40.9]} 35. Kh2 {[%clk 0:00:35]} 35... Bg4 {[%clk 0:00:40.3]} 36. f3
{[%clk 0:00:35]} 36... Bf5 {[%clk 0:00:40.3]} 37. b4 {[%clk 0:00:30.8]} 37...
axb4 {[%clk 0:00:37.7]} 38. axb4 {[%clk 0:00:31.7]} 38... cxb4 {[%clk
0:00:30.2]} 39. Rxc7 {[%clk 0:00:30.4]} 39... Rxd1 {[%clk 0:00:30.3]} 40. Rb7
{[%clk 0:00:30.9]} 40... Rb1 {[%clk 0:00:09.7]} 41. Rb6 {[%clk 0:00:20]} 41...
b3 {[%clk 0:00:09.5]} 42. g4 {[%clk 0:00:20.2]} 42... Bc2 {[%clk 0:00:08.3]} 43.
Rxd6 {[%clk 0:00:19]} 43... Rd1 {[%clk 0:00:07]} 44. Rb6 {[%clk 0:00:18.9]}
44... Rxd5 {[%clk 0:00:06.9]} 45. f4 {[%clk 0:00:18.8]} 45... Rd2 {[%clk
0:00:06.6]} 46. Kg3 {[%clk 0:00:19]} 46... Rd3+ {[%clk 0:00:06.4]} 47. Kf2
{[%clk 0:00:18.7]} 47... hxg4 {[%clk 0:00:06.7]} 48. Bc6 {[%clk 0:00:17.3]}
48... Rc3 {[%clk 0:00:04.9]} 49. Ba4 {[%clk 0:00:17.1]} 49... Kg7 {[%clk
0:00:04.4]} 50. Rb7 {[%clk 0:00:14.9]} 50... g3+ {[%clk 0:00:04.6]} 51. Kg2
{[%clk 0:00:15]} 51... Be4+ {[%clk 0:00:04.6]} 52. Kh3 {[%clk 0:00:15.7]} 52...
Bxb7 {[%clk 0:00:05.5]} 0-1

[Event "Late-Titled-Tuesday-Blitz-April-23-2024"]
[Site "Chess.com"]
[Date "2024.04.23"]
[Round "4"]
[White "ploxoi"]
[Black "GelmanAlexander"]
[Result "0-1"]
[WhiteElo "2416"]
[BlackElo "2623"]
[TimeControl "180+1"]
[EndTime "14:41:17 PDT"]
[Termination "GelmanAlexander won by checkmate"]

1. d4 {[%clk 0:03:00.9]} 1... c5 {[%clk 0:02:59.5]} 2. d5 {[%clk 0:03:00.7]}
2... Nf6 {[%clk 0:02:59.7]} 3. Nf3 {[%clk 0:03:01]} 3... e6 {[%clk 0:02:59.3]}
4. c4 {[%clk 0:03:01.4]} 4... b5 {[%clk 0:02:59.5]} 5. dxe6 {[%clk 0:02:47.3]}
5... fxe6 {[%clk 0:03:00.4]} 6. cxb5 {[%clk 0:02:44.7]} 6... a6 {[%clk
0:02:58.1]} 7. bxa6 {[%clk 0:02:44.2]} 7... Bxa6 {[%clk 0:02:58.1]} 8. g3 {[%clk
0:02:44.4]} 8... Nc6 {[%clk 0:02:57.9]} 9. Bg2 {[%clk 0:02:45]} 9... d5 {[%clk
0:02:58.1]} 10. O-O {[%clk 0:02:45.4]} 10... Bd6 {[%clk 0:02:58.4]} 11. Nc3
{[%clk 0:02:45.3]} 11... O-O {[%clk 0:02:58.4]} 12. Bg5 {[%clk 0:02:40]} 12...
h6 {[%clk 0:02:54.7]} 13. Bxf6 {[%clk 0:02:37.8]} 13... Qxf6 {[%clk 0:02:50.6]}
14. Nxd5 {[%clk 0:02:33.5]} 14... exd5 {[%clk 0:02:50.8]} 15. Qxd5+ {[%clk
0:02:32.9]} 15... Kh8 {[%clk 0:02:51.3]} 16. Qxc6 {[%clk 0:02:32.8]} 16... Bxe2
{[%clk 0:02:51.4]} 17. Rfe1 {[%clk 0:02:08]} 17... Bxf3 {[%clk 0:02:47]} 18.
Bxf3 {[%clk 0:02:08.5]} 18... Qxf3 {[%clk 0:02:47.1]} 19. Qxd6 {[%clk 0:02:09]}
19... Qxf2+ {[%clk 0:02:46.5]} 20. Kh1 {[%clk 0:02:09.1]} 20... Rad8 {[%clk
0:02:26.8]} 21. Qe6 {[%clk 0:01:25.9]} 21... Rd2 {[%clk 0:02:25.7]} 22. Qh3
{[%clk 0:01:25.4]} 22... Qf3+ {[%clk 0:01:22.1]} 23. Kg1 {[%clk 0:01:24.2]}
23... Qd5 {[%clk 0:00:57.6]} 24. Rf1 {[%clk 0:01:15.5]} 24... Qd4+ {[%clk
0:00:44.1]} 25. Kh1 {[%clk 0:01:14.1]} 25... Qe4+ {[%clk 0:00:44.4]} 26. Kg1
{[%clk 0:01:12.9]} 26... Re8 {[%clk 0:00:44.9]} 27. Rf4 {[%clk 0:01:07.9]} 27...
Qe3+ {[%clk 0:00:42]} 28. Kh1 {[%clk 0:01:07.5]} 28... Qd3 {[%clk 0:00:32.1]}
29. Qf5 {[%clk 0:00:51.4]} 29... Qe2 {[%clk 0:00:22.8]} 30. Qh3 {[%clk 0:00:48]}
30... Rxb2 {[%clk 0:00:19.2]} 31. Raf1 {[%clk 0:00:40.9]} 31... Qe5 {[%clk
0:00:12.3]} 32. Rf8+ {[%clk 0:00:34.8]} 32... Rxf8 {[%clk 0:00:12.6]} 33. Rxf8+
{[%clk 0:00:35.5]} 33... Kh7 {[%clk 0:00:13.5]} 34. Qf5+ {[%clk 0:00:35.5]}
34... Qxf5 {[%clk 0:00:13.9]} 35. Rxf5 {[%clk 0:00:36.4]} 35... c4 {[%clk
0:00:14.1]} 36. Rc5 {[%clk 0:00:27.3]} 36... Rc2 {[%clk 0:00:13.7]} 37. a4
{[%clk 0:00:25.4]} 37... c3 {[%clk 0:00:14]} 38. a5 {[%clk 0:00:20.9]} 38... Ra2
{[%clk 0:00:14.1]} 39. Rxc3 {[%clk 0:00:19.1]} 39... Rxa5 {[%clk 0:00:14.7]} 40.
Kg2 {[%clk 0:00:17.4]} 40... Kg6 {[%clk 0:00:15.1]} 41. Rc6+ {[%clk 0:00:17.1]}
41... Kh7 {[%clk 0:00:14.7]} 42. Kh3 {[%clk 0:00:15.5]} 42... Ra2 {[%clk
0:00:15.3]} 43. Rb6 {[%clk 0:00:14.5]} 43... Rc2 {[%clk 0:00:15.2]} 44. Rd6
{[%clk 0:00:14.4]} 44... h5 {[%clk 0:00:15.5]} 45. Rb6 {[%clk 0:00:13.4]} 45...
g6 {[%clk 0:00:15.9]} 46. Rb4 {[%clk 0:00:10.5]} 46... Kh6 {[%clk 0:00:16.3]}
47. Rb5 {[%clk 0:00:10.8]} 47... Rd2 {[%clk 0:00:16.1]} 48. Rc5 {[%clk
0:00:10.8]} 48... Kg7 {[%clk 0:00:16.5]} 49. Rb5 {[%clk 0:00:11.3]} 49... Kf6
{[%clk 0:00:17.1]} 50. Rc5 {[%clk 0:00:11.9]} 50... g5 {[%clk 0:00:17]} 51. Rc6+
{[%clk 0:00:11.8]} 51... Kf5 {[%clk 0:00:16.2]} 52. Rc5+ {[%clk 0:00:12]} 52...
Kg6 {[%clk 0:00:16.7]} 53. Rc6+ {[%clk 0:00:11.3]} 53... Kf7 {[%clk 0:00:17.2]}
54. Rc5 {[%clk 0:00:06.4]} 54... Kf6 {[%clk 0:00:17.2]} 55. Rc6+ {[%clk
0:00:05.7]} 55... Ke5 {[%clk 0:00:16.9]} 56. Rc5+ {[%clk 0:00:05.9]} 56... Rd5
{[%clk 0:00:16.7]} 57. Rc8 {[%clk 0:00:05]} 57... Rd2 {[%clk 0:00:13.3]} 58.
Re8+ {[%clk 0:00:05.1]} 58... Kf6 {[%clk 0:00:13.1]} 59. Rc8 {[%clk 0:00:03.2]}
59... g4+ {[%clk 0:00:12.8]} 60. Kh4 {[%clk 0:00:03.4]} 60... Rxh2# {[%clk
0:00:13.6]} 0-1